Cogmind - Beta 16 @@@ ROGUE MODE // 2025.11.11 @ 00:51:04 Player: welikiq Result: Destroyed by S-27 Virus with Autogun Performance ------------- Evolutions (5) 2500 Regions Visited (11) 2200 Robots Destroyed (210) 1050 Value Destroyed (5733) 5733 Prototype IDs (26) 520 Alien Tech Used (0) 0 Bonus (1366) 1366 TOTAL SCORE: 13369 Bonus ------- High Alert Combat Kills 1092 Follower Combat Kills 14 Aligned with FarCom 300 Friendly Fire -40 Cogmind --------- Core Integrity 0/1000 Matter 290/300 Energy 68/100 System Corruption 16% Temperature Cool (0) Movement Core (100) Ox1 Location -5/Upper Caves Parts ------- > --- POWER (1) -------- (None) > --- PROPULSION (5) --- (None) > --- UTILITY (8) ------ Hacking Suite > --- WEAPON (3) ------- Great Axe > --- INVENTORY (5) ---- Improved Treads Advanced Heat Sink Improved Transmission Jammer Improved Medium Armor Plating Peak State ------------ > --- POWER ------------ Improved Deuterium Engine > --- PROPULSION ------- Cooled Airjet Cooled Airjet Cooled Airjet Cooled Airjet Cooled Gravmag System > --- UTILITY ---------- Advanced Terrain Scanner Improved Transmission Jammer Improved Light Armor Plating Hacking Suite Hacking Suite Hacking Suite System Shield System Shield > --- WEAPON ----------- Gatling Laser Improved Spread Laser Great Axe > --- INVENTORY -------- Light Deuterium Engine Gravmag System Cooled Airjet Improved Signal Interpreter Heavy Rocket Launcher [Rating: 74] Favorites ----------- Power Cooled Ion Engine Engine Cooled Ion Engine Power Core Light Fission Core Propulsion Light Treads Treads Light Treads Hover Unit Cooled Airjet Flight Unit Improved Cesium-ion Thruster Utility Hacking Suite Device Cooling System Storage High-capacity Storage Unit Processor Signal Interpreter Hackware Hacking Suite Protection Light Armor Plating Weapon Ion Cannon Energy Gun Improved EM Shotgun Energy Cannon Ion Cannon Ballistic Gun Light Assault Rifle Ballistic Cannon Assault Cannon Launcher Grenade Launcher Impact Weapon Heavy Flail Slashing Weapon Great Axe Build | -11 -10 -10 -9 -9 -9 -8 -8 -7 -6 -5 -5 ------- Run | Yrd Mat Min Mat Min Exi Min Mat Fac Fac Fac Upp Slots Evolved 10 | . . . 2 . . . 2 2 2 2 . Power . | . . . . . . . . . . . . Propulsion 3 | . . . 1 . . . . 1 1 . . Utility 6 | . . . 1 . . . 1 1 1 2 . Weapon 1 | . . . . . . . 1 . . . . Parts Attached 96 | 7 2 . 29 . . 1 23 11 11 10 2 Power 10 | 1 1 . 2 . . . 2 1 1 2 . Engine 8 | 1 1 . 2 . . . 2 1 . 1 . Core 2 | . . . . . . . . . 1 1 . Reactor . | . . . . . . . . . . . . Propulsion 29 | 2 . . 9 . . . 8 1 6 3 . Treads 20 | 2 . . 9 . . . 8 1 . . . Leg . | . . . . . . . . . . . . Wheel . | . . . . . . . . . . . . Hover 8 | . . . . . . . . . 5 3 . Flight 1 | . . . . . . . . . 1 . . Utility 30 | 2 1 . 9 . . 1 5 3 4 4 1 Device 10 | 1 . . 2 . . . 2 1 2 1 1 Storage 3 | 1 . . 2 . . . . . . . . Processor 3 | . . . 1 . . 1 . . . 1 . Hackware 7 | . . . 1 . . . 2 1 1 2 . Protection 7 | . 1 . 3 . . . 1 1 1 . . Artifact . | . . . . . . . . . . . . Weapon 27 | 2 . . 9 . . . 8 6 . 1 1 Energy Gun 9 | 1 . . 5 . . . 1 2 . . . Energy Cannon 6 | . . . 2 . . . 4 . . . . Ballistic Gun 3 | 1 . . . . . . . 2 . . . Ballistic Cannon 2 | . . . . . . . 1 1 . . . Launcher 4 | . . . 1 . . . 2 . . . 1 Special Weapon . | . . . . . . . . . . . . Impact Weapon 1 | . . . . . . . . . . 1 . Slashing Weapon 2 | . . . 1 . . . . 1 . . . Piercing Weapon . | . . . . . . . . . . . . Special Melee Weapon . | . . . . . . . . . . . . Unidentified Prototypes 8 | . . . 2 . . . 1 2 2 1 . Parts Lost 31 | . . . 4 . . . 10 . 2 7 8 Power 3 | . . . . . . . 1 . 1 . 1 Propulsion 10 | . . . 1 . . . 2 . . 3 4 Utility 9 | . . . 1 . . . 2 . 1 4 1 Weapon 9 | . . . 2 . . . 5 . . . 2 Highest Loss Streak 7 | . . . 2 . . . 4 . 2 6 7 To Critical Strikes . | . . . . . . . . . . . . Average Backups 14 | 1 3 5 17 20 20 20 18 18 9 4 1 Power 2 | . . . 2 2 2 2 2 3 2 . . Propulsion 2 | . . . 2 3 3 3 4 3 1 1 . Utility 6 | . . 1 7 9 9 9 7 8 3 1 . Weapon 3 | . 2 4 5 6 6 6 2 2 1 1 . Tool/Special . | . . . . . . . . . . . . Unused Backups 32 | . 1 . 13 1 . . 1 3 10 1 2 Power 4 | . . . 2 . . . . . 2 . . Propulsion 3 | . . . . . . . . . 2 . 1 Utility 13 | . . . 5 . . . 1 1 4 1 1 Weapon 10 | . 1 . 6 1 . . . 1 1 . . Tool/Special 2 | . . . . . . . . 1 1 . . Average Slot Usage (%) 95 | . 99 100 97 100 100 100 97 99 96 89 41 Engine 9 | . 13 14 11 11 11 11 8 7 3 4 . Treads 26 | . 28 28 32 33 33 33 26 30 11 . . Hover 2 | . . . . . . . . . 20 27 12 Device 8 | . 8 . 9 11 11 11 9 7 11 9 4 Storage 9 | . 14 14 11 11 11 11 9 7 2 . . Hackware 9 | . . . 6 11 11 11 10 14 16 25 8 Protection 5 | . 5 14 3 . . . 5 7 6 3 . Energy Gun 6 | . 14 14 7 . . . . 13 13 7 . Energy Cannon 9 | . . . 9 11 11 11 18 1 . . . Ballistic Gun 1 | . 14 14 . . . . . 2 . . . Ballistic Cannon 1 | . . . . . . . 3 2 2 . . Launcher 3 | . . . 4 11 11 11 3 . . . 2 Peak Build Rating 74 | 9 9 7 22 20 20 20 31 45 65 74 47 Average Rating 25 | 6 8 7 18 20 20 19 28 41 55 66 30 On Entrance 22 | . 9 7 7 20 20 20 19 25 43 56 46 Avg Prop Armor Cover (%) . | . . . . . . . . . . . . Naked Turns . | . . . . . . . . . . . . Heaviest Build 77 | 12 16 16 65 59 59 59 77 73 74 27 15 Greatest Support 102 | 40 40 40 60 60 60 60 60 82 102 46 37 Greatest Overweight (x) 4 | . . . 1 . . . 1 . 4 . 2 Average Overweight (x) . | . . . . . . . . . . . . Largest Inventory Capacity 20 | 8 8 8 20 20 20 20 20 20 20 5 5 Average Capacity 16 | 6 8 8 18 20 20 20 20 20 10 5 5 Most Carried 20 | 3 4 6 20 20 20 20 20 20 20 5 5 Average Carried 14 | 1 3 5 17 20 20 20 18 18 8 4 1 Final Capacity 20 | 8 8 8 20 20 20 20 20 20 5 5 5 Final Carried 20 | 2 4 6 20 20 20 20 15 20 5 1 4 Class Distribution -------------------- 55% | Mutant 19% | Skirmisher 12% | Hacker-Skirmisher 6% | Hacker-Mutant 3% | Hacker-Ninja Dominant Class ---------------- Mutant | -10/Materials Mutant | -10/Mines Mutant | -9/Materials Mutant | -9/Mines Mutant | -9/Exiles Mutant | -8/Mines Skirmisher | -8/Materials Hacker-Skirmisher | -7/Factory Hacker-Mutant | -6/Factory Hacker-Ninja | -5/Factory Hacker-Mutant | -5/Upper Caves Resources | -11 -10 -10 -9 -9 -9 -8 -8 -7 -6 -5 -5 ----------- Run | Yrd Mat Min Mat Min Exi Min Mat Fac Fac Fac Upp Matter Collected 3242 | 208 116 97 1008 . . . 1026 151 308 158 170 Remotely . | . . . . . . . . . . . . Salvage Created 6701 | 20 209 101 2575 . . . 2949 229 143 258 217 Parts 422 | 2 13 12 201 . . . 154 13 2 19 6 Haulers Intercepted 10 | . . . 4 . . . 4 1 . 1 . Recyclers Shooed 5 | . 1 . . . . . 2 . 2 . . Parts Field Recycled . | . . . . . . . . . . . . Retrieved Matter . | . . . . . . . . . . . . Parts Self-Destructed 6 | . . . . . . . . . . . 6 Prevented 2 | . . . . . . . . . . . 2 Parts Restored . | . . . . . . . . . . . . Kills | -11 -10 -10 -9 -9 -9 -8 -8 -7 -6 -5 -5 ------- Run | Yrd Mat Min Mat Min Exi Min Mat Fac Fac Fac Upp Combat Hostiles Destroyed 131 | . 3 7 51 . . . 58 5 1 2 4 Melee 5 | . . . . . . . . . . 2 3 Guns 29 | . 3 6 15 . . . . 4 1 . . Cannons 43 | . . . 8 . . . 34 1 . . . AOE 53 | . . 1 28 . . . 23 . . . 1 Classes Destroyed 17 | 1 3 1 7 . . . 4 1 . . . Worker 10 | . . . 6 . . . 4 . . . . Builder 34 | . . . 17 . . . 17 . . . . Tunneler 2 | 1 . . 1 . . . . . . . . Hauler 10 | . . . 4 . . . 4 1 . 1 . Recycler 8 | . . . 2 . . . 5 . 1 . . Operator 5 | . 1 . 1 . . . 2 . . 1 . Watcher 10 | . 2 . 3 . . . 4 . . 1 . Swarmer 21 | . . 7 4 . . . 9 . . . 1 Grunt 73 | . 3 . 36 . . . 31 2 . . 1 Brawler 2 | . . . . . . . 2 . . . . Duelist 4 | . . . 1 . . . 3 . . . . Protector 5 | . . . 2 . . . 3 . . . . Sentry 17 | . . . 8 . . . 6 1 1 . 1 Specialist 2 | . . . . . . . 2 . . . . Hunter 1 | . . . . . . . 1 . . . . Programmer 5 | . . . . . . . . 2 . 2 1 Heavy 1 | . . . . . . . 1 . . . . Best Kill Streak 16 | 1 2 3 6 . . . 16 3 1 1 3 Combat Bots Only 14 | . 2 3 5 . . . 14 3 1 1 3 Max Kills in Single Turn 4 | 1 1 2 4 . . . 3 1 1 1 1 Gunslinging . | . . . . . . . . . . . . Exploded 4 | . . 1 4 . . . 3 . . . 1 Melee 1 | . . . . . . . . . . 1 1 Uniques/NPCs Destroyed . | . . . . . . . . . . . . Combat | -11 -10 -10 -9 -9 -9 -8 -8 -7 -6 -5 -5 -------- Run | Yrd Mat Min Mat Min Exi Min Mat Fac Fac Fac Upp Hostile Shots Fired 523 | . 12 9 111 . . . 182 44 36 40 89 Missed 156 | . 4 1 38 . . . 51 15 16 13 18 Hits 367 | . 8 8 73 . . . 131 29 20 27 71 Melee 8 | . . . . . . . 1 . . 7 . Projectile 359 | . 8 8 73 . . . 130 29 20 20 71 Critical Strikes 18 | . . 1 2 . . . 7 2 . 1 5 Damage Taken 6500 | . 93 104 1068 . . . 2214 361 344 917 1399 Core 1414 | . . 10 93 . . . 287 10 5 125 884 Absorbed by Shields 32 | . . . . . . . 32 . . . . Regen/Repaired (Parts) 246 | . . . 104 . . . . . . 142 . Core Remaining (%) 86 | 100 . 96 . . . 76 47 98 99 . . Volleys Fired 419 | 1 28 9 184 . . . 172 10 6 2 7 Largest 3 | 2 2 2 2 . . . 3 3 3 2 1 Hottest 195 | 60 60 60 120 . . . 180 195 195 155 39 Shots Fired 820 | 2 56 18 292 . . . 392 30 18 4 8 Gun 220 | 2 56 18 104 . . . . 24 12 4 . Cannon 508 | . . . 142 . . . 354 6 6 . . Launcher 92 | . . . 46 . . . 38 . . . 8 Special . | . . . . . . . . . . . . Kinetic 107 | 1 28 9 11 . . . 42 10 6 . . Thermal 476 | . . . 142 . . . 298 20 12 4 . Explosive 92 | . . . 46 . . . 38 . . . 8 Electromagnetic 145 | 1 28 9 93 . . . 14 . . . . Robot Hit Streak 19 | 2 19 9 16 . . . 13 15 18 6 7 Robot Miss Streak 6 | . 3 2 5 . . . 4 3 3 6 1 Penetration Max . | . . . . . . . . . . . . Secondary Targets 3 | . . 1 2 . . . . . . . . Max Gunslinging Chain 1 | . . 1 1 . . . . . . . . Shots Hit Robots 471 | 2 43 12 154 . . . 186 23 15 19 17 Core Hits 367 | 2 14 11 140 . . . 144 23 13 12 8 Critical Kills 1 | . . . . . . . 1 . . . . Critical Parts Destroyed . | . . . . . . . . . . . . Critical Strikes 6 | . 1 . . . . . 2 . . 1 2 Meltdown 1 | . . . . . . . 1 . . . . Blast 1 | . . . . . . . 1 . . . . Corrupt 1 | . 1 . . . . . . . . . . Sever 3 | . . . . . . . . . . 1 2 Melee Attacks 88 | . . . 1 . . . . 2 14 53 18 Impact 7 | . . . . . . . . . . 5 2 Slashing 81 | . . . 1 . . . . 2 14 48 16 Piercing . | . . . . . . . . . . . . Sneak Attacks 1 | . . . . . . . . . . 1 . Combat Hostiles . | . . . . . . . . . . . . Follow-up Attacks 4 | . . . . . . . . . . 2 2 Damage Inflicted 16617 | 20 512 267 5314 . . . 8006 640 400 746 712 Guns 2926 | 20 501 141 1392 . . . . 518 276 78 . Cannons 6366 | . . . 1517 . . . 4603 122 124 . . Explosions 6058 | . . 87 2393 . . . 3338 . . . 240 Melee 1140 | . . . . . . . . . . 668 472 Ramming 127 | . 11 39 12 . . . 65 . . . . Kinetic 1050 | 7 170 59 76 . . . 398 216 124 . . Thermal 7039 | . . 87 2142 . . . 4032 424 276 78 . Explosive 5244 | . . . 1768 . . . 3236 . . . 240 Electromagnetic 2017 | 13 331 82 1316 . . . 275 . . . . Impact 31 | . . . . . . . . . . 31 . Slashing 1109 | . . . . . . . . . . 637 472 Piercing . | . . . . . . . . . . . . Highest Corruption 16 | . . . 1 1 1 1 2 4 8 16 16 Average Corruption 2 | . . . 1 1 1 1 1 1 3 15 16 Corruption Purged . | . . . . . . . . . . . . Corruption Blocked . | . . . . . . . . . . . . Effects 103 | . . . 38 . 2 . 28 3 6 6 20 Message Errors 29 | . . . 11 . 2 . 6 2 1 1 6 Matter Fused 21 | . . . 5 . . . 8 . 2 3 3 Heat Flow Errors 12 | . . . 6 . . . 2 . . 1 3 Energy Discharges 12 | . . . 4 . . . 4 . . 1 3 Parts Rejected 1 | . . . . . . . 1 . . . . Data Loss (minor) 14 | . . . 5 . . . 3 1 2 . 3 Data Loss (major) 5 | . . . 3 . . . . . 1 . 1 Misfires 4 | . . . 1 . . . 2 . . . 1 Alerts 4 | . . . 3 . . . 1 . . . . Weapon Failures 1 | . . . . . . . 1 . . . . Overload Shots . | . . . . . . . . . . . . Overflow Damage 230 | . . . 71 . . . 113 . . 16 30 Projectiles 133 | . . . 62 . . . 71 . . . . Explosions 49 | . . . 9 . . . 40 . . . . Melee 48 | . . . . . . . 2 . . 16 30 Knockbacks 8 | . . 1 . . . . 4 1 2 . . Impact 3 | . . 1 . . . . 2 . . . . Kinetic 5 | . . . . . . . 2 1 2 . . Secondary . | . . . . . . . . . . . . Self-Inflicted Damage 296 | . . 40 170 . . . . . . . 86 Shots 10 | . . 1 6 . . . . . . . 3 Rammed 26 | . 4 10 3 . . . 9 . . . . Targets Rammed 28 | . 4 10 4 . . . 10 . . . . Kicked . | . . . . . . . . . . . . Crushed 2 | . . . 1 . . . 1 . . . . Highest Temperature 330 | 20 116 91 255 . . . 330 293 90 206 245 Average Temperature 56 | 15 48 38 41 . . . 52 121 38 87 103 Received Heat Transfer 1800 | . 54 . 444 . . . 864 96 54 18 270 Effects 4 | . . . 3 . . . 1 . . . . Interference 4 | . . . 3 . . . 1 . . . . Siege Activations . | . . . . . . . . . . . . Martial Activations . | . . . . . . . . . . . . Shielding Activations . | . . . . . . . . . . . . Robots Disrupted 1 | . . . 1 . . . . . . . . Combat Hostiles . | . . . . . . . . . . . . Robots Corrupted 1 | . . . . . . . 1 . . . . Combat Hostiles . | . . . . . . . . . . . . Parts Fried 10 | . 2 . 5 . . . 3 . . . . Impact Corruptions 2 | . . . . . . . 2 . . . . Robots Melted 1 | . . . . . . . 1 . . . . Combat Hostiles 1 | . . . . . . . 1 . . . . Parts Melted 21 | . . 1 4 . . . 15 1 . . . Heat Transferred 10646 | . . 100 3087 . . . 6219 695 435 110 . Parts Sabotaged . | . . . . . . . . . . . . Parts Stolen . | . . . . . . . . . . . . Parts Stripped . | . . . . . . . . . . . . Power Chain Reactions 11 | . . 1 8 . . . 2 . . . . Alert | -11 -10 -10 -9 -9 -9 -8 -8 -7 -6 -5 -5 ------- Run | Yrd Mat Min Mat Min Exi Min Mat Fac Fac Fac Upp Maximum Alert Level 4 | . . . 4 2 . . 4 2 . . . Low Security (%) 48 | 100 100 100 30 . . 100 47 . 100 100 . Level 1 12 | . . . 11 . . . 5 70 . . . Level 2 15 | . . . 23 100 . . 11 28 . . . Level 3 16 | . . . 27 . . . 20 . . . . Level 4 7 | . . . 6 . . . 15 . . . . Level 5 . | . . . . . . . . . . . . High Security . | . . . . . . . . . . . . Max Security . | . . . . . . . . . . . . Sterilizations 2 | . . . 1 . . . 1 . . . . Peak Influence 1278 | 5 50 97 1163 453 . . 1278 569 132 77 . Initial 569 | . . . 26 453 . . . 569 124 . . Average 383 | . 6 22 530 439 . . 472 354 73 15 . Influence Increases 4658 | 5 121 237 1728 . . . 1894 156 101 216 200 Destroy 0b10 Robot/C 2560 | . 60 180 980 . . . 1100 100 20 40 80 Destroy 0b10 Robot/NC 425 | 5 15 . 180 . . . 195 5 5 15 5 Destroy Leader 630 | . 24 30 234 . . . 256 42 10 24 10 Allied During Kill 19 | . . 19 . . . . . . . . . Successful Hack 104 | . 22 . 17 . . . 45 7 13 . . Disable Machine 240 | . . . 120 . . . 90 . 15 15 . Destroy Structure 440 | . . 8 182 . . . 208 2 8 32 . Partial Spotted 45 | . . . 15 . . . . . 30 . . Lose Combat Pursuer 195 | . . . . . . . . . . 90 105 Influence Decreases 4601 | 5 121 170 632 740 423 . 642 1153 356 198 161 Entered New Map 1996 | . . . 41 710 423 . . 683 131 . 8 Time Decay 2355 | 5 121 150 571 30 . . 542 470 205 138 123 Lost Part 230 | . . . 20 . . . 100 . 20 60 30 Lost Ally 20 | . . 20 . . . . . . . . . Squads Dispatched 30 | . 1 . 9 . . . 12 5 . 3 . Investigation 6 | . 1 . 1 . . . 1 3 . . . Extermination 4 | . . . . . . . . 2 . 2 . Reinforcement 14 | . . . 5 . . . 8 . . 1 . Assault 6 | . . . 3 . . . 3 . . . . Garrison . | . . . . . . . . . . . . Intercept . | . . . . . . . . . . . . Searches Triggered . | . . . . . . . . . . . . Construction Impeded 8 | . . . 4 . . . 4 . . . . Haulers Reinforced . | . . . . . . . . . . . . Active Scanning Responses . | . . . . . . . . . . . . Cargo Convoy Interrupts . | . . . . . . . . . . . . Stealth | -11 -10 -10 -9 -9 -9 -8 -8 -7 -6 -5 -5 --------- Run | Yrd Mat Min Mat Min Exi Min Mat Fac Fac Fac Upp Distress Signals 5 | . . . 1 . . . 3 . . 1 . Communications Jammed . | . . . . . . . . . . . . Distress Signals . | . . . . . . . . . . . . Times Spotted 185 | . 8 9 61 . . . 72 6 2 13 14 Peak Tracking Total 7 | . 3 3 5 . . . 7 3 1 5 7 Tactical Retreats 7 | . . . . . . . . . . 4 3 Traps | -11 -10 -10 -9 -9 -9 -8 -8 -7 -6 -5 -5 ------- Run | Yrd Mat Min Mat Min Exi Min Mat Fac Fac Fac Upp Traps Triggered 10 | . 2 . 1 . . . 3 1 . 3 . Indirectly . | . . . . . . . . . . . . Trap Hack Attempts . | . . . . . . . . . . . . Triggered . | . . . . . . . . . . . . Disarmed . | . . . . . . . . . . . . Reprogrammed . | . . . . . . . . . . . . Reused . | . . . . . . . . . . . . Traps Extracted . | . . . . . . . . . . . . Installed . | . . . . . . . . . . . . Triggered . | . . . . . . . . . . . . Machines | -11 -10 -10 -9 -9 -9 -8 -8 -7 -6 -5 -5 ---------- Run | Yrd Mat Min Mat Min Exi Min Mat Fac Fac Fac Upp Machines Disabled 16 | . . . 8 . . . 6 . 1 1 . Max in Single Turn 1 | . . . 1 . . . 1 . 1 1 . Garrison Access 1 | . . . . . . . 1 . . . . Machines Repaired . | . . . . . . . . . . . . Machines Dismantled . | . . . . . . . . . . . . Machines Sabotaged . | . . . . . . . . . . . . Overloaded Fab Kills . | . . . . . . . . . . . . Hacking | -11 -10 -10 -9 -9 -9 -8 -8 -7 -6 -5 -5 --------- Run | Yrd Mat Min Mat Min Exi Min Mat Fac Fac Fac Upp Machines Accessed 36 | . 6 . 8 . . . 7 7 3 5 . Terminals 30 | . 6 . 5 . . . 6 7 3 3 . Fabricators . | . . . . . . . . . . . . Repair Stations 2 | . . . 1 . . . . . . 1 . Recycling Units . | . . . . . . . . . . . . Scanalyzers 3 | . . . 2 . . . . . . 1 . Garrison Access 1 | . . . . . . . 1 . . . . Total Hacks 109 | . 14 . 30 . . . 20 19 9 17 . Successful 52 | . 6 . 14 . . . 13 8 2 9 . Failed 56 | . 8 . 16 . . . 6 11 7 8 . Catastrophic 10 | . 3 . 2 . . . 1 1 . 3 . Database Lockouts 1 | . . . . . . . 1 . . . . Manual 48 | . 9 . 8 . . . 5 13 7 6 . Terminals 84 | . 14 . 16 . . . 19 19 9 7 . Fabricators . | . . . . . . . . . . . . Repair Stations 12 | . . . 5 . . . . . . 7 . Recycling Units . | . . . . . . . . . . . . Scanalyzers 12 | . . . 9 . . . . . . 3 . Garrison Access 1 | . . . . . . . 1 . . . . Terminal Hacks 35 | . 6 . 6 . . . 12 8 2 1 . Record 1 | . . . . . . . . 1 . . . Robot Analysis 6 | . 5 . . . . . 1 . . . . Prototype ID Bank 10 | . 1 . 1 . . . 4 3 1 . . Open DSF 1 | . . . . . . . . . 1 . . Level Access Points 1 | . . . . . . . . 1 . . . Branch Access Points 2 | . . . 1 . . . . . . 1 . Emergency Access Points 1 | . . . . . . . 1 . . . . Terminal Index 3 | . . . 1 . . . 1 1 . . . Locate Traps 3 | . . . 1 . . . . 2 . . . Dispatch Records 1 | . . . . . . . 1 . . . . Maintenance Status 1 | . . . . . . . 1 . . . . Security Status 1 | . . . . . . . 1 . . . . Assault Status 1 | . . . 1 . . . . . . . . Hauler Manifests 1 | . . . 1 . . . . . . . . Zone Layout 2 | . . . . . . . 2 . . . . Fabricator Hacks . | . . . . . . . . . . . . Repair Station Hacks 10 | . . . 4 . . . . . . 6 . Scan Component 5 | . . . 2 . . . . . . 3 . Repair 5 | . . . 2 . . . . . . 3 . Recycling Unit Hacks . | . . . . . . . . . . . . Scanalyzer 6 | . . . 4 . . . . . . 2 . Retrieve Study 6 | . . . 4 . . . . . . 2 . Garrison Access Hacks 1 | . . . . . . . 1 . . . . Seal Access 1 | . . . . . . . 1 . . . . Unauthorized Hacks . | . . . . . . . . . . . . Terminals . | . . . . . . . . . . . . Fabricators . | . . . . . . . . . . . . Repair Stations . | . . . . . . . . . . . . Recycling Units . | . . . . . . . . . . . . Scanalyzers . | . . . . . . . . . . . . Garrison Access . | . . . . . . . . . . . . Data Cores Recovered 3 | . 1 . . . . . 1 . . 1 . Used 2 | . 1 . . . . . . . . 1 . Hacking Detections 30 | . 6 . 6 . . . 5 7 2 4 . Full Trace Events 10 | . 2 . 3 . . . 2 3 . . . Feedback Events 2 | . . . 1 . . . . 1 . . . Corruption 2 | . . . 1 . . . . 1 . . . Feedback Blocked . | . . . . . . . . . . . . Robot Schematics Acquired . | . . . . . . . . . . . . Robots Built . | . . . . . . . . . . . . Authchips . | . . . . . . . . . . . . Time . | . . . . . . . . . . . . Total Robot Build Rating . | . . . . . . . . . . . . Part Schematics Acquired . | . . . . . . . . . . . . Parts Built . | . . . . . . . . . . . . Authchips . | . . . . . . . . . . . . Time . | . . . . . . . . . . . . Total Part Build Rating . | . . . . . . . . . . . . Part Studies Acquired 6 | . . . 4 . . . . . . 2 . Parts Repaired 5 | . . . 2 . . . . . . 3 . Time 210 | . . . 52 . . . . . . 158 . Parts Recycled . | . . . . . . . . . . . . Recycled Matter . | . . . . . . . . . . . . Retrieved Matter . | . . . . . . . . . . . . Retrieved Components . | . . . . . . . . . . . . Parts Scanalyzed . | . . . . . . . . . . . . Part Schematics Acquired . | . . . . . . . . . . . . Parts Damaged . | . . . . . . . . . . . . Bothacking | -11 -10 -10 -9 -9 -9 -8 -8 -7 -6 -5 -5 ------------ Run | Yrd Mat Min Mat Min Exi Min Mat Fac Fac Fac Upp Used RIF Installer . | . . . . . . . . . . . . Robots Hacked . | . . . . . . . . . . . . Non-combat . | . . . . . . . . . . . . Combat . | . . . . . . . . . . . . Robot Hacks Applied . | . . . . . . . . . . . . Relay Couplers Released . | . . . . . . . . . . . . Fabnet Peak Effective % . | . . . . . . . . . . . . Robots Rewired . | . . . . . . . . . . . . Allies Hacked . | . . . . . . . . . . . . Hacks Repelled . | . . . . . . . . . . . . Allies | -11 -10 -10 -9 -9 -9 -8 -8 -7 -6 -5 -5 -------- Run | Yrd Mat Min Mat Min Exi Min Mat Fac Fac Fac Upp Total Allies 3 | . . 3 . . . . . . . . . Largest Group 3 | . . 3 . . . . . . . . . Highest-Rated Group 73 | . . 73 . . . . . . . . . Highest-Rated Ally 31 | . . 31 . . . . . . . . . Total Orders . | . . . . . . . . . . . . Ally Attacks 17 | . . 17 . . . . . . . . . Total Damage 148 | . . 148 . . . . . . . . . Kills 2 | . . 2 . . . . . . . . . Allies Corrupted . | . . . . . . . . . . . . Allies Melted . | . . . . . . . . . . . . Intel | -11 -10 -10 -9 -9 -9 -8 -8 -7 -6 -5 -5 ------- Run | Yrd Mat Min Mat Min Exi Min Mat Fac Fac Fac Upp Active Infowar (turns) 1277 | 38 383 . 2 . . . . . 238 592 24 Optics 2 | . . . 2 . . . . . . . . Terrain 1046 | 38 383 . . . . . . . 95 530 . Jamming 266 | . . . . . . . . . 179 63 24 Robot Analysis Total 6 | . 5 . . . . . 1 . . . . Derelict Logs Recovered 4 | . . 2 . . . . . . . . 2 Drone Launches . | . . . . . . . . . . . . Drone Recoveries . | . . . . . . . . . . . . Exploration | -11 -10 -10 -9 -9 -9 -8 -8 -7 -6 -5 -5 ------------- Run | Yrd Mat Min Mat Min Exi Min Mat Fac Fac Fac Upp Turns Passed 13690 | 114 646 945 4883 70 312 88 3863 1186 426 652 505 Spaces Moved 6385 | 64 338 562 1532 44 196 55 1114 690 552 771 467 Core 316 | 3 . . . . . . . . . . 313 Treads 4664 | 61 338 562 1532 44 196 55 1114 690 72 . . Legs . | . . . . . . . . . . . . Wheels . | . . . . . . . . . . . . Hover 1405 | . . . . . . . . . 480 771 154 Flight . | . . . . . . . . . . . . Fastest Speed 34 | 50 160 160 160 160 160 160 163 158 34 34 40 Average Speed 139 | 154 160 160 170 160 160 160 215 158 51 34 53 Slowest Speed 290 | 160 160 160 200 160 160 160 216 162 290 46 150 Overloaded Moves . | . . . . . . . . . . . . Propulsion Burnouts . | . . . . . . . . . . . . Robots Hopped . | . . . . . . . . . . . . Potential Cave-ins 15 | . . . . . . . . . 5 10 . Cave-ins Triggered 2 | . . . . . . . . . 1 1 . Exploration Rate (%) 43 | 4 55 97 78 19 63 23 67 22 14 22 62 Regions Visited 11 Branch Regions 5 Pre-discovered Areas 2 | . . 1 . . . . . . . . 1 Known Exits Taken 4 | . . . 1 . . 1 . 1 . 1 . Unknown Exits Taken 7 | 1 1 1 . 1 1 . 1 . 1 . . Scrap Searched 3 | . . 3 . . . . . . . . . Spaces Dug 70 | . . . 11 . . . 14 2 14 29 . Terrain Destroyed 652 | . . 8 231 . . . 280 2 14 29 88 Melee 46 | . . . 1 . . . . 2 14 29 . Projectile 89 | . . . 30 . . . 59 . . . . AOE 517 | . . 8 200 . . . 221 . . . 88 Terrain Rammed . | . . . . . . . . . . . . Walls Destroyed . | . . . . . . . . . . . . Machines Disabled . | . . . . . . . . . . . . Actions | -11 -10 -10 -9 -9 -9 -8 -8 -7 -6 -5 -5 --------- Run | Yrd Mat Min Mat Min Exi Min Mat Fac Fac Fac Upp Total 10258 | 74 390 586 3503 45 195 55 2251 752 656 1060 691 Wait 3080 | . 12 4 1691 . . . 898 23 49 211 192 Move 6374 | 63 337 561 1531 43 195 54 1113 689 551 770 467 Hop . | . . . . . . . . . . . . Pick Up 72 | 3 4 2 27 1 . . 12 8 8 5 2 Fast Attach 32 | 6 2 . 6 . . . . 2 5 10 1 Attach 29 | 1 1 . 1 . . . 12 2 4 6 2 Detach 4 | . . . . . . . . . . . 4 Swap 76 | . 1 . 31 . . 1 21 12 6 4 . Drop 63 | . 1 . 27 1 . . 13 4 13 4 . Fire 419 | 1 28 9 184 . . . 172 10 6 2 7 Melee 81 | . . . 1 . . . . 2 14 48 16 Ram . | . . . . . . . . . . . . Kick . | . . . . . . . . . . . . Crush 28 | . 4 10 4 . . . 10 . . . . Escape Stasis . | . . . . . . . . . . . . Rewire . | . . . . . . . . . . . . Trap . | . . . . . . . . . . . . Miscellaneous . | . . . . . . . . . . . . Route ------- -11/Scrapyard -10/Materials (discovered 3 exits: *Mat x2 / [*Min]) -10/Mines (discovered 3 exits: *Mat x2 / [*Sub]) -9/Materials (discovered 4 exits: *Mat x3 / *Min) -9/Mines -9/Exiles -8/Mines -8/Materials -7/Factory (discovered 4 exits: *Fac x4) -6/Factory -5/Factory (discovered 3 exits: [*Fac] / *Upp x2) -5/Upper Caves (discovered 1 exit: Upp) History --------- Turn | Location | Event 12 | -11/Scrapyard | Discovered new exit (range 16) 115 | -11/Scrapyard | Entered Materials 285 | -10/Materials | Discovered new exit (range 16) 301 | -10/Materials | Build established: Mutant 522 | -10/Materials | Discovered new exit (range 16) 617 | -10/Materials | Discovered new exit (range 5) 761 | -10/Materials | Entered Mines 886 | -10/Mines | Discovered new exit (range 10) 988 | -10/Mines | Discovered new exit (range 6) 1150 | -10/Mines | Discovered new exit (range 5) 1205 | -10/Mines | Received a Mining Laser from a helpful Derelict 1349 | -10/Mines | Learned location of Storage (-7) 1427 | -10/Mines | Found a hidden stash of uninstalled traps 1706 | -10/Mines | Entered Materials 1706 | -9/Materials | Evolved 2 slots: Propulsion x1, Utility x1 1878 | -9/Materials | Discovered new exit (range 13) 2842 | -9/Materials | Discovered new exit (range 5) 3187 | -9/Materials | Discovered new exit (range 16) 3246 | -9/Materials | Identified exit to Mines 3764 | -9/Materials | Discovered new exit (range 14) 3984 | -9/Materials | Repaired Lgt. Treads+ 4011 | -9/Materials | Repaired Lgt. Treads+ 4106 | -9/Materials | First assault squad dispatched 6266 | -9/Materials | Sterilization system engaged 6266 | -9/Materials | Non-combat units ordered to evacuate 6366 | -9/Materials | Combat units ordered to evacuate 6566 | -9/Materials | Ambient heat levels rising (+10) 6589 | -9/Materials | Entered Mines 6606 | -9/Mines | Received a Rocket Launcher from a helpful Derelict 6648 | -9/Mines | Deemed a non-threat by the Exiles lab entrance 6649 | -9/Mines | Discovered new exit (range 5) 6659 | -9/Mines | Entered Exiles 6698 | -9/Exiles | Met 8R-AWN 6727 | -9/Exiles | Met EX-HEX 6775 | -9/Exiles | Met EX-BIN 6794 | -9/Exiles | Aligned with FarCom system 6795 | -9/Exiles | Given EX-Vault access code 6895 | -9/Exiles | Met EX-DEC 6955 | -9/Exiles | Discovered new exit (range 11) 6971 | -9/Exiles | Entered Mines 7043 | -8/Mines | Discovered new exit (range 8) 7058 | -8/Mines | Identified exit to Materials 7059 | -8/Mines | Entered Materials 7059 | -8/Materials | Evolved 2 slots: Utility x1, Weapon x1 7363 | -8/Materials | Build established: Skirmisher 8276 | -8/Materials | Central database locked down 8332 | -8/Materials | Lost 4 parts (1n1u2w) 8446 | -8/Materials | Discovered new exit (range 13) 9207 | -8/Materials | Build established: Hacker-Skirmisher 9459 | -8/Materials | First assault squad dispatched 9586 | -8/Materials | Destroyed 9 combat bots 9847 | -8/Materials | Build established: Skirmisher 10353 | -8/Materials | Sterilization system engaged 10353 | -8/Materials | Non-combat units ordered to evacuate 10395 | -8/Materials | Core integrity fell below 50% 10417 | -8/Materials | Lost 3 parts (1n2w) 10430 | -8/Materials | Destroyed 14 combat bots 10453 | -8/Materials | Combat units ordered to evacuate 10653 | -8/Materials | Ambient heat levels rising (+10) 10658 | -8/Materials | Build established: Mutant 10803 | -8/Materials | Ambient heat levels rising (+10) 10922 | -8/Materials | Entered Factory 10922 | -7/Factory | Evolved 2 slots: Propulsion x1, Utility x1 11271 | -7/Factory | Build established: Hacker-Skirmisher 11415 | -7/Factory | Identified exit to Factory 12108 | -7/Factory | Entered another Factory area 12108 | -6/Factory | Evolved 2 slots: Propulsion x1, Utility x1 12116 | -6/Factory | Identified exit to DSF 12460 | -6/Factory | Discovered new exit (range 11) 12523 | -6/Factory | Crushed by falling debris 12534 | -6/Factory | Entered another Factory area 12534 | -5/Factory | Evolved 2 slots: Utility x2 12586 | -5/Factory | Identified exit to Upper Caves 12683 | -5/Factory | Repaired Cld. Airjet 12728 | -5/Factory | Repaired Imp. Deuterium Engine 12787 | -5/Factory | Repaired Great Axe 13029 | -5/Factory | Discovered new exit (range 6) 13082 | -5/Factory | Build established: Hacker-Ninja 13097 | -5/Factory | Crushed by falling debris 13097 | -5/Factory | System corruption reached 10% 13144 | -5/Factory | Lost 6 parts (2n4u) 13186 | -5/Factory | Entered Upper Caves 13382 | -5/Upper Caves | Build established: Hacker-Mutant 13441 | -5/Upper Caves | Attracted the attention of an 0b10 checkpoint 13485 | -5/Upper Caves | Core integrity fell below 50% 13505 | -5/Upper Caves | Lost 7 parts (4n1u2w) 13552 | -5/Upper Caves | Attracted the attention of an 0b10 outpost 13575 | -5/Upper Caves | Encountered a Warlord checkpoint 13575 | -5/Upper Caves | Learned location of Warlord (-5) 13603 | -5/Upper Caves | Identified exit to Upper Caves 13683 | -5/Upper Caves | Core integrity fell below 20% 13691 | -5/Upper Caves | Destroyed by S-27 Virus with Autogun Last Messages --------------- 13506_ Acquired Imp. Medium Armor Plating. 13510_ Acquired 23 matter. 13515_ The unstable cave ceiling collapses. 13528_ System corrupted: Substantial component data lost. 13529_ Acquired 78 matter. 13549_ C%:> 3VOJH 8HYLKK9GX:NEHY4T 13552_ Y-72 Warden: "DETECTED UNIDENTIFIED DERELICT." 13555_ Discarded Imp. Signal Interpreter. 13556_ Y-72 Warden: "REQUESTING BACKUP." 13566_ 15T KX%IXFCHYOU,AL=